[Event "84th Annual Southwest Open"]
[Site "Irving"]
[Date "2018.08.31"]
[Round "1"]
[White "Stefanov, Emil"]
[Black "Kumar, Naman"]
[Result "1-0"]
[ECO "E81"]
[WhiteElo "2407"]
[BlackElo "1914"]
[Annotator "ChessBase"]
[PlyCount "73"]
[EventDate "2018.08.31"]
[EventType "swiss"]
[EventCountry "USA"]
[SourceTitle "playchess.com"]
[Source "ChessBase"]
[SourceQuality "1"]
[TimeControl "5400+30"]

1. d4 {[%emt 0:00:00]} Nf6 {[%emt 0:00:00]} 2. c4 {[%emt 0:00:00]} g6 {[%emt 0:00:00]} 3. Nc3 {[%emt 0:00:19]} Bg7 {[%emt 0:00:00]} 4. e4 {[%emt 0:00:16]} d6 {[%emt 0:00:00]} 5. f3 {[%emt 0:02:54]} O-O {[%emt 0:00:14]} 6. Be3 {[%emt 0:00:09]} c5 {[%emt 0:01:46]} 7. d5 {[%emt 0:04:47]} a6 {[%emt 0:07:46]} 8. Qd2 {[%emt 0:01:49]} Qa5 {[%emt 0:05:43]} 9. a4 {[%emt 0:05:11]} Ne8 {[%emt 0:14:19]} 10. Ra3 {[%emt 0:05:26]} Bd7 {[%emt 0:02:22]} 11. Bd3 {[%emt 0:03:27]} Bxc3 {[%emt 0:13:05]} 12. bxc3 {[%emt 0:08:44]} b5 {[%emt 0:07:26]} 13. Bh6 {[%emt 0:03:27]} Ng7 {[%emt 0:04:50]} 14. Ne2 {[%emt 0:05:35]} Rc8 {[%emt 0:02:41]} 15. h4 {[%emt 0:00:25]} bxc4 {[%emt 0:03:04]} 16. Bc2 {[%emt 0:01:30]} Ne8 {[%emt 0:04:21]} 17. h5 {[%emt 0:01:04]} Qb6 {[%emt 0:01:07]} 18. hxg6 {[%emt 0:06:34]} fxg6 {[%emt 0:07:18]} 19. Qg5 {[%emt 0:01:49]} Qd8 {[%emt 0:02:41]} 20. Qh4 {[%emt 0:00:28]} Nf6 {[%emt 0:02:26]} 21. Bg5 {[%emt 0:10:11]} Qf8 {[%emt 0:02:27]} 22. Bxf6 {[%emt 0:01:00]} Qxf6 {[%emt 0:01:20]} 23. Qxh7+ {[%emt 0:00:06]} Kf8 {[%emt 0:00:02]} 24. Nf4 {[%emt 0:02:27]} Qg7 {[%emt 0:01:17]} 25. Nxg6+ {[%emt 0:01:37]} Kf7 {[%emt 0:00:08]} 26. e5 {[%emt 0:01:09]} dxe5 {[%emt 0:04:00]} 27. Nxe5+ {[%emt 0:00:09]} Kf8 {[%emt 0:00:22]} 28. Ng6+ {[%emt 0:00:16]} Kf7 {[%emt 0:00:02]} 29. Qh4 {[%emt 0:06:59]} Qf6 {[%emt 0:03:03]} 30. Qe4 {[%emt 0:00:15]} Rg8 {[%emt 0:02:17]} 31. Rh7+ {[%emt 0:04:05]} Rg7 {[%emt 0:02:56]} 32. Rxg7+ {[%emt 0:00:49]} Kxg7 {[%emt 0:00:32]} 33. Nxe7 {[%emt 0:02:37]} Qh6 {[%emt 0:02:15]} 34. Qe5+ {[%emt 0:04:55]} Kf8 {[%emt 0:00:23]} 35. Ng6+ {[%emt 0:00:10]} Kg8 {[%emt 0:00:10]} 36. Qf4 {[%emt 0:05:05]} Qg7 {[%emt 0:01:16]} 37. Qxc4 {[%emt 0:00:50]} 1-0

[Event "84th Annual Southwest Open"]
[Site "Irving"]
[Date "2018.09.02"]
[Round "4"]
[White "Ynojosa Aponte, Felix Jose"]
[Black "Nguyen, Emily"]
[Result "1-0"]
[ECO "D36"]
[WhiteElo "2370"]
[BlackElo "2194"]
[Annotator "NA RC"]
[PlyCount "79"]
[EventDate "2018.08.31"]
[EventType "swiss"]
[EventCountry "USA"]
[SourceTitle "playchess.com"]
[Source "ChessBase"]
[SourceQuality "1"]
[TimeControl "5400+30"]

{[%evp 20,77,38,10,36,8,8,0,0,-8,0,-16,32767,32767,32767,32767,0,16,32767,32767,20,25,30,27,32767,32767,37,32767,57,44,54,54,34,38,29,6,43,17,34,32767,32767,32767,32767,32767,32767,5,42,14,14,8,10,9,213,15,254,250,403,396,613,660]} 1. c4 {[%emt 0:07:05]} e6 {[%emt 0:00:00]} 2. Nc3 {[%emt 0:00:03]} d5 {[%emt 0:00:00]} 3. d4 {[%emt 0:00:11]} Nf6 {[%emt 0:00:00]} 4. Bg5 {[%emt 0:01:15]} c6 {[%emt 0:01:30]} 5. e3 {[%emt 0:00:39]} Nbd7 {[%emt 0:00:28]} 6. cxd5 {[%emt 0:00:35]} exd5 {[%emt 0:00:21]} 7. Bd3 {[%emt 0:00:04]} Be7 {[%emt 0:01:37]} 8. Qc2 {[%emt 0:01:12]} O-O {[%emt 0:00:55]} 9. h3 {[%emt 0:00:42]} Re8 {[%emt 0:04:46]} 10. Nf3 {[%emt 0:00:13]} Nf8 {[%emt 0:02:25] LiveBook: 795 Partien} 11. Rb1 {[%emt 0:01:35] D36: Queen's Gambit Declined: Exchange Variation: Main line (5 Bg5 c6 6 Qc2)} (11. O-O Be6 12. Ne5 N6d7 13. Bxe7 Qxe7 14. f4 f6 15. Nxd7 Qxd7 16. Rae1 Re7 17. f5 Bf7 18. Qf2 Rae8 19. Qf4 g5 20. fxg6 Bxg6 21. Bxg6 Nxg6 {½-½ (41) Rakhmanov,A (2659)-Berkes,F (2653) Hungary 2017}) 11... a5 {[%emt 0:03:02]} 12. a3 {[%emt 0:01:18]} Ne4 {[%emt 0:03:31]} 13. Bf4 {[%emt 0:03:46]} Bd6 $146 {[%emt 0:13:20]} ({Predecessor:} 13... Nxc3 14. bxc3 Bxa3 15. c4 dxc4 16. Bxc4 Bb4+ 17. Ke2 Be6 18. Bd3 Qd5 {0-1 (32) Kleibel,U (1999)-Mazarov,J (2177) playchess.com INT 2009}) 14. Bxd6 {[%emt 0:01:46]} Nxd6 {[%emt 0:00:12]} 15. O-O {[%emt 0:01:03]} Qf6 {[%emt 0:00:44]} 16. Ne5 {[%emt 0:01:01]} Bf5 {[%emt 0:04:20]} 17. b4 {[%emt 0:00:40]} axb4 {[%emt 0:10:25]} 18. axb4 {[%emt 0:00:03]} Bxd3 {[%emt 0:00:56]} 19. Qxd3 {[%emt 0:00:10]} Qe6 {[%emt 0:10:22]} 20. b5 {[%emt 0:01:20]} f6 {[%emt 0:03:32]} 21. Nf3 {[%emt 0:00:09]} Ra3 {[%emt 0:03:37]} 22. bxc6 {[%emt 0:00:04]} bxc6 {[%emt 0:00:07]} ({Black should play} 22... Ne4 $11 23. Nxe4 Rxd3) 23. Nd2 {[%emt 0:00:08]} Nd7 {[%emt 0:01:58]} 24. Qc2 {[%emt 0:00:51]} Rea8 {[%emt 0:04:24]} 25. Rfc1 {[%emt 0:01:55]} R3a6 {[%emt 0:00:53]} 26. e4 {[%emt 0:01:42]} dxe4 {[%emt 0:02:38]} 27. Ncxe4 {[%emt 0:01:02]} Nxe4 {[%emt 0:01:09]} 28. Nxe4 {[%emt 0:00:04]} Ra4 {[%emt 0:05:35]} 29. Rd1 {[%emt 0:07:49]} Ra2 {[%emt 0:05:42]} 30. Qd3 {[%emt 0:01:23]} R2a3 {[%emt 0:00:21]} 31. Nc3 {[%emt 0:01:23]} Nf8 {[%emt 0:04:42]} 32. Rb6 {[%emt 0:02:03]} Rc8 {[%emt 0:05:04]} 33. Rb7 {[%emt 0:02:25]} Rd8 {[%emt 0:01:36]} 34. Qd2 {[%emt 0:01:10]} Qc4 {[%emt 0:01:07]} 35. Ne4 {[%emt 0:00:38]} Ra4 $2 {[%emt 0:01:35] [#]} (35... Rb3 $11 {and Black has nothing to worry.} 36. Re7 Qb4) 36. Qe3 {[%emt 0:02:51]} (36. Qf4 $1 $16 Rxd4 37. Rxd4 Qxd4 38. Qg3 Ra1+ 39. Kh2) 36... Rxd4 $2 {[%emt 0:01:17]} ({Better is} 36... Rb4 $14 37. Re7 Qc2) 37. Rc1 {[%emt 0:01:11]} Qe6 $2 {[%emt 0:02:13]} (37... Rxe4 {is a better defense.} 38. Rxc4 Rxe3 39. Rxa4 Re8) 38. Qg3 {[%emt 0:00:44]} g6 $18 {[%emt 0:01:44]} (38... Rd7 $142) 39. Nc5 $1 {[%emt 0:00:14]} ({Avoid the trap} 39. Qc7 $2 Rd7 $19) 39... Qa2 {[%emt 0:00:43]} 40. Qc7 {[%emt 0:00:39]} 1-0

[Event "84th Annual Southwest Open"]
[Site "Irving"]
[Date "2018.09.02"]
[Round "6"]
[White "Sanchez, Robert"]
[Black "Cervantes Landeiro, Thalia"]
[Result "1/2-1/2"]
[ECO "A87"]
[WhiteElo "1834"]
[BlackElo "2172"]
[Annotator "NA"]
[PlyCount "117"]
[EventDate "2018.08.31"]
[EventType "swiss"]
[EventCountry "USA"]
[SourceTitle "playchess.com"]
[Source "ChessBase"]
[SourceQuality "1"]
[TimeControl "5400+30"]

1. d4 {[%emt 0:00:00]} f5 {[%emt 0:00:00]} 2. g3 {[%emt 0:00:00]} Nf6 {[%emt 0:00:00]} 3. Bg2 {[%emt 0:00:00]} g6 {[%emt 0:00:00]} 4. c4 {[%emt 0:00:00]} Bg7 {[%emt 0:00:00]} 5. Nc3 {[%emt 0:00:00]} d6 {[%emt 0:00:00]} 6. Nf3 {[%emt 0:00:01]} O-O {[%emt 0:00:00]} 7. O-O {[%emt 0:00:06]} Qe8 {[%emt 0:00:00]} 8. d5 {[%emt 0:00:24]} a5 {[%emt 0:00:01]} 9. Be3 {[%emt 0:03:52]} Na6 {[%emt 0:00:08]} 10. Qc1 {[%emt 0:01:41] A87: Dutch Defence: Leningrad System: 5 Nf3} Ng4 {[%emt 0:00:05]} 11. Bd4 {[%emt 0:02:20]} Bh6 {[%emt 0:00:11]} 12. Qd1 {[%emt 0:12:41]} e5 {[%emt 0:01:43]} 13. dxe6 {[%emt 0:00:06]} c5 {[%emt 0:00:02] [#]} 14. Be3 $146 {[%emt 0:01:10]} ({Predecessor:} 14. e7 Rf7 15. Nb5 cxd4 16. Nxd6 Qxe7 17. Nxf7 Kxf7 {½-½ (43) Adianto,U (2591)-Hoang,T (2447) Jakarta 2004}) 14... Bxe3 {[%emt 0:06:59]} 15. fxe3 {[%emt 0:00:11]} Nxe3 {[%emt 0:00:04]} 16. Qd3 {[%emt 0:10:40]} Nxg2 {[%emt 0:01:42]} 17. Kxg2 {[%emt 0:00:33]} Nb4 {[%emt 0:00:56]} 18. Qxd6 {[%emt 0:06:22]} Qxe6 {[%emt 0:01:27]} 19. Qxe6+ {[%emt 0:07:52]} Bxe6 {[%emt 0:00:02]} 20. Rac1 {[%emt 0:00:04]} Bxc4 {[%emt 0:01:20]} 21. Ne5 {[%emt 0:13:25]} Be6 {[%emt 0:03:01]} ({Of course not} 21... Nxa2 $6 22. Nxc4 Nxc1 23. Rxc1 $11) 22. a3 {[%emt 0:02:17]} Nd5 {[%emt 0:00:38]} 23. Nxd5 {[%emt 0:01:59]} Bxd5+ {[%emt 0:00:01]} 24. Kf2 {[%emt 0:00:09]} f4 {[%emt 0:14:24]} 25. Nd7 {[%emt 0:05:26]} fxg3+ {[%emt 0:01:15]} 26. Kxg3 {[%emt 0:00:08]} Rxf1 {[%emt 0:00:11]} 27. Rxf1 {[%emt 0:00:05]} Bc6 {[%emt 0:09:06]} 28. Nxc5 {[%emt 0:01:14]} Re8 {[%emt 0:00:55]} 29. Re1 {[%emt 0:04:48]} Re5 {[%emt 0:03:01]} 30. Nd3 {[%emt 0:01:30]} Rg5+ {[%emt 0:00:39]} 31. Kf4 {[%emt 0:00:49]} Rg2 {[%emt 0:04:00]} 32. h4 {[%emt 0:00:45]} Bb5 {[%emt 0:02:02]} 33. Kf3 {[%emt 0:01:25]} Bc6+ $1 {[%emt 0:00:22]} 34. Kf4 {[%emt 0:01:51]} h5 {[%emt 0:04:42]} 35. Ne5 {[%emt 0:01:02]} Kg7 {[%emt 0:00:40]} 36. Nxc6 {[%emt 0:02:54]} bxc6 {[%emt 0:00:27]} 37. Kf3 {[%emt 0:00:14]} Rg4 {[%emt 0:00:06]} 38. Rc1 {[%emt 0:04:09]} Rxh4 {[%emt 0:00:43]} 39. Rxc6 {[%emt 0:00:07]} Rh3+ {[%emt 0:00:05]} 40. Kf2 {[%emt 0:00:35]} Rb3 {[%emt 0:00:05]} 41. Rc5 {[%emt 0:00:14]} Rxb2 {[%emt 0:01:38]} 42. Rxa5 {[%emt 0:00:02]} h4 {[%emt 0:00:39]} 43. Kf3 {[%emt 0:00:25]} h3 {[%emt 0:01:15]} 44. Kg3 {[%emt 0:00:22]} Rb3+ {[%emt 0:00:07]} 45. Kh2 {[%emt 0:00:09]} Kf6 {[%emt 0:01:34]} 46. Ra6+ {[%emt 0:00:49]} Kg5 {[%emt 0:00:22]} 47. a4 {[%emt 0:06:14]} Kh5 {[%emt 0:01:10]} 48. Rf6 {[%emt 0:00:43]} Re3 {[%emt 0:02:19]} 49. Rf3 {[%emt 0:00:52]} Rxe2+ {[%emt 0:00:05]} 50. Kxh3 {[%emt 0:00:07]} Ra2 {[%emt 0:00:47]} 51. Rf4 {[%emt 0:00:17]} g5 {[%emt 0:00:14]} 52. Rb4 {[%emt 0:00:06]} Ra3+ {[%emt 0:00:11]} 53. Kg2 {[%emt 0:00:04]} g4 {[%emt 0:00:06]} 54. Rb8 {[%emt 0:01:13]} Rxa4 {[%emt 0:00:43]} 55. Rb3 {[%emt 0:00:06]} Kh4 {[%emt 0:00:20]} 56. Rc3 {[%emt 0:01:01]} Ra2+ {[%emt 0:00:11]} 57. Kg1 $11 {[%emt 0:00:12]} Re2 {[%emt 0:01:26]} 58. Ra3 {[%emt 0:00:21]} g3 {[%emt 0:00:31]} 59. Ra8 {[%emt 0:00:28]} 1/2-1/2

[Event "84th Annual Southwest Open"]
[Site "Irving"]
[Date "2018.09.02"]
[Round "6"]
[White "Huang, Max"]
[Black "Green, Austen"]
[Result "1/2-1/2"]
[ECO "C51"]
[WhiteElo "1805"]
[BlackElo "2066"]
[Annotator "NA RC"]
[PlyCount "101"]
[EventDate "2018.08.31"]
[EventType "swiss"]
[EventCountry "USA"]
[SourceTitle "playchess.com"]
[Source "ChessBase"]
[SourceQuality "1"]
[TimeControl "5400+30"]

1. e4 {[%emt 0:04:35]} e5 {[%emt 0:00:00]} 2. Nf3 {[%emt 0:00:08]} Nc6 {[%emt 0:00:00]} 3. Bc4 {[%emt 1:26:47]} Bc5 {[%emt 0:00:00]} 4. b4 {[%emt 0:00:00]} Bd6 {[%emt 0:16:29]} 5. O-O {[%emt 0:00:00]} Nf6 {[%emt 0:00:46]} 6. c3 {[%emt 0:00:00]} O-O {[%emt 0:05:09]} 7. d3 {[%emt 0:00:00]} a5 {[%emt 0:04:58]} 8. b5 {[%emt 0:00:00]} Ne7 {[%emt 0:00:35]} 9. d4 {[%emt 0:00:00]} Ng6 {[%emt 0:01:47]} 10. dxe5 {[%emt 0:00:00]} Bxe5 {[%emt 0:17:21]} 11. Nxe5 {[%emt 0:00:00]} Nxe5 {[%emt 0:00:05]} 12. Bb3 {[%emt 0:00:00]} d6 {[%emt 0:02:05]} 13. f4 {[%emt 0:00:00]} Ng6 {[%emt 0:02:46]} 14. Bc2 {[%emt 0:00:00]} Re8 {[%emt 0:04:05]} 15. Qd4 {[%emt 0:00:00]} c5 {[%emt 0:06:31]} 16. Qa4 {[%emt 0:00:00]} b6 {[%emt 0:01:21]} 17. f5 {[%emt 0:00:00]} Ne5 {[%emt 0:00:50]} 18. Bg5 {[%emt 0:00:00]} h6 {[%emt 0:01:38]} 19. Bh4 {[%emt 0:00:00]} Neg4 {[%emt 0:01:34]} 20. h3 {[%emt 0:00:00]} Ne5 {[%emt 0:04:43]} 21. Nd2 {[%emt 0:00:00]} Bb7 {[%emt 0:01:41]} 22. Rad1 {[%emt 0:00:00]} d5 {[%emt 0:09:15]} 23. exd5 {[%emt 0:00:00]} Qxd5 {[%emt 0:04:00]} 24. Ne4 {[%emt 0:00:00]} Qc4 {[%emt 0:01:56]} 25. Nd6 {[%emt 0:00:00]} Qxa4 {[%emt 0:05:51]} 26. Bxa4 {[%emt 0:00:00]} Ne4 {[%emt 0:04:58]} 27. Nxe8 {[%emt 0:00:00]} Rxe8 {[%emt 0:01:04]} 28. Rd8 {[%emt 0:00:00]} Rxd8 {[%emt 0:00:13]} 29. Bxd8 {[%emt 0:00:00]} Nxc3 {[%emt 0:00:04]} 30. Bc2 {[%emt 0:00:00]} Nxb5 {[%emt 0:01:23]} 31. Bxb6 {[%emt 0:00:00]} Nd4 {[%emt 0:00:42]} 32. Bb3 {[%emt 0:00:00]} Ne2+ {[%emt 0:00:49]} 33. Kh2 {[%emt 0:00:00]} c4 {[%emt 0:01:04]} 34. Re1 {[%emt 0:00:00]} cxb3 {[%emt 0:00:33]} 35. Rxe2 {[%emt 0:00:00]} bxa2 {[%emt 0:00:04]} 36. Rxa2 {[%emt 0:00:00]} Nc4 {[%emt 0:00:18]} 37. Bxa5 {[%emt 0:00:00]} Nxa5 {[%emt 0:01:11]} 38. Rxa5 {[%emt 0:00:00]} Be4 {[%emt 0:00:03]} 39. Re5 {[%emt 0:00:00]} Bc2 {[%emt 0:00:17]} 40. Kg3 {[%emt 0:00:00]} g6 {[%emt 0:01:14]} 41. f6 {[%emt 0:00:00]} Bb3 {[%emt 0:00:16]} 42. h4 {[%emt 0:00:00]} Kh7 {[%emt 0:00:38]} 43. Kf4 {[%emt 0:00:00]} Ba2 {[%emt 0:00:35]} 44. g4 {[%emt 0:00:00]} Bb3 {[%emt 0:00:35]} 45. g5 {[%emt 0:00:00]} hxg5+ {[%emt 0:00:23]} 46. hxg5 {[%emt 0:00:00]} Kg8 {[%emt 0:00:06]} 47. Re8+ {[%emt 0:00:00]} Kh7 {[%emt 0:00:05]} 48. Ke5 {[%emt 0:00:00]} Bc4 {[%emt 0:00:49]} 49. Kd6 {[%emt 0:00:00]} Bb5 {[%emt 0:00:18]} 50. Rf8 {[%emt 0:00:00]} Be8 {[%emt 0:00:13]} 51. Ke7 {[%emt 0:00:00]} 1/2-1/2

[Event "84th Annual Southwest Open"]
[Site "Irving"]
[Date "2018.09.03"]
[Round "7"]
[White "Dejmek, Mark"]
[Black "Kumar, Naman"]
[Result "0-1"]
[ECO "B43"]
[WhiteElo "1998"]
[BlackElo "1914"]
[Annotator "NA RC"]
[PlyCount "114"]
[EventDate "2018.08.31"]
[EventType "swiss"]
[EventCountry "USA"]
[SourceTitle "playchess.com"]
[Source "ChessBase"]
[SourceQuality "1"]
[TimeControl "5400+30"]

1. e4 {[%emt 0:00:00]} c5 {[%emt 0:00:00]} 2. Nf3 {[%emt 0:00:00]} e6 {[%emt 0:00:00]} 3. Nc3 {[%emt 0:00:06]} a6 {[%emt 0:00:00]} 4. g3 {[%emt 0:00:15]} b5 {[%emt 0:00:54]} 5. d4 {[%emt 0:00:15]} cxd4 {[%emt 0:00:28]} 6. Nxd4 {[%emt 0:00:07]} Bb7 {[%emt 0:00:16]} 7. Bg2 {[%emt 0:00:14]} Qc7 {[%emt 0:00:58]} 8. O-O {[%emt 0:00:42]} d6 {[%emt 0:00:36]} 9. Re1 {[%emt 0:01:10]} Nd7 {[%emt 0:01:39]} 10. a4 {[%emt 0:01:28]} b4 {[%emt 0:00:13]} 11. Na2 {[%emt 0:00:16]} a5 {[%emt 0:13:06]} 12. c3 {[%emt 0:00:31]} bxc3 {[%emt 0:00:27]} 13. Nxc3 {[%emt 0:00:13]} Ngf6 {[%emt 0:00:32]} 14. Be3 {[%emt 0:08:44]} Be7 {[%emt 0:01:17]} 15. Rc1 {[%emt 0:00:16]} Qb8 {[%emt 0:00:51]} 16. f4 {[%emt 0:13:55]} O-O {[%emt 0:03:53]} 17. Bf2 {[%emt 0:07:55]} Rc8 {[%emt 0:15:41]} 18. Ndb5 {[%emt 0:07:28]} Bf8 {[%emt 0:04:16]} 19. g4 {[%emt 0:08:07]} g6 {[%emt 0:10:34]} 20. g5 {[%emt 0:06:54]} Nh5 {[%emt 0:00:44]} 21. Qg4 {[%emt 0:01:01]} Nc5 {[%emt 0:02:20]} 22. Rcd1 {[%emt 0:05:07]} e5 {[%emt 0:05:36]} 23. f5 {[%emt 0:06:34]} Nf4 {[%emt 0:01:04]} 24. Bf1 {[%emt 0:00:17]} Bc6 {[%emt 0:04:06]} 25. Bxc5 {[%emt 0:12:00]} dxc5 {[%emt 0:00:47]} 26. Bc4 {[%emt 0:00:46]} Rd8 {[%emt 0:02:58]} 27. Rxd8 {[%emt 0:04:03]} Qxd8 {[%emt 0:00:07]} 28. Rd1 {[%emt 0:00:07]} Qc8 {[%emt 0:06:07]} 29. Nd5 {[%emt 0:01:24]} Bxd5 {[%emt 0:02:02]} 30. Bxd5 {[%emt 0:00:42]} c4 {[%emt 0:04:15]} 31. Bxa8 {[%emt 0:02:51]} Qxa8 {[%emt 0:00:53]} 32. Nc3 {[%emt 0:01:30]} Qa7+ {[%emt 0:01:25]} 33. Kf1 {[%emt 0:00:25]} gxf5 {[%emt 0:01:11]} 34. Qxf5 {[%emt 0:00:52]} Qe3 {[%emt 0:00:24]} 35. Qg4 {[%emt 0:01:57]} Bc5 {[%emt 0:04:35]} 36. Qg3 {[%emt 0:01:09]} Qxg3 {[%emt 0:03:02]} 37. hxg3 {[%emt 0:00:00]} Nd3 {[%emt 0:00:11]} 38. b3 {[%emt 0:00:31]} Bd4 {[%emt 0:00:51]} 39. Nb5 {[%emt 0:04:36]} Nb2 {[%emt 0:00:52]} 40. Rc1 {[%emt 0:01:08]} cxb3 {[%emt 0:00:11]} 41. Nxd4 {[%emt 0:00:16]} exd4 {[%emt 0:00:22]} 42. Ke2 {[%emt 0:01:10]} Nxa4 {[%emt 0:00:07]} 43. Rc8+ {[%emt 0:01:47]} Kg7 {[%emt 0:00:48]} 44. Kd3 {[%emt 0:00:31]} Nc3 {[%emt 0:01:43]} 45. Rb8 {[%emt 0:00:28]} a4 {[%emt 0:00:36]} 46. Kxd4 {[%emt 0:00:13]} Nd1 {[%emt 0:02:28]} 47. Kd3 {[%emt 0:01:19]} b2 {[%emt 0:01:07]} 48. Kc2 {[%emt 0:01:03]} a3 {[%emt 0:00:18]} 49. Kxd1 {[%emt 0:01:18]} a2 {[%emt 0:00:05]} 50. Rxb2 {[%emt 0:00:05]} a1=Q+ {[%emt 0:00:09]} 51. Kc2 {[%emt 0:00:04]} Qa4+ {[%emt 0:00:09]} 52. Kc1 {[%emt 0:00:38]} Qxe4 {[%emt 0:00:00]} 53. Rb3 {[%emt 0:00:35]} Qd5 {[%emt 0:00:00]} 54. Re3 {[%emt 0:00:44]} Qxg5 {[%emt 0:00:00]} 55. Kd2 {[%emt 0:00:06]} Qd5+ {[%emt 0:00:00]} 56. Ke2 {[%emt 0:00:14]} Qg2+ {[%emt 0:00:00]} 57. Ke1 {[%emt 0:00:26]} Kg6 {[%emt 0:00:00]} 0-1

[Event "84th Annual Southwest Open"]
[Site "Irving"]
[Date "2018.09.03"]
[Round "8"]
[White "Wang, Justin"]
[Black "Stefanov, Emil"]
[Result "1-0"]
[ECO "C97"]
[WhiteElo "2391"]
[BlackElo "2407"]
[Annotator "ChessBase"]
[PlyCount "113"]
[EventDate "2018.08.31"]
[EventType "swiss"]
[EventCountry "USA"]
[SourceTitle "playchess.com"]
[Source "ChessBase"]
[SourceQuality "1"]
[TimeControl "5400+30"]

1. e4 {[%emt 0:03:52]} e5 {[%emt 0:00:00]} 2. Nf3 {[%emt 0:00:17]} Nc6 {[%emt 0:00:00]} 3. Bb5 {[%emt 0:00:31]} a6 {[%emt 0:00:00]} 4. Ba4 {[%emt 0:00:10]} Nf6 {[%emt 0:00:00]} 5. O-O {[%emt 0:00:26]} Be7 {[%emt 0:01:18]} 6. Re1 {[%emt 0:00:47]} b5 {[%emt 0:00:50]} 7. Bb3 {[%emt 0:00:01]} d6 {[%emt 0:00:07]} 8. c3 {[%emt 0:00:23]} O-O {[%emt 0:00:08]} 9. h3 {[%emt 0:00:15]} Na5 {[%emt 0:10:45]} 10. Bc2 {[%emt 0:01:04]} c5 {[%emt 0:00:05]} 11. d4 {[%emt 0:00:25]} Qc7 {[%emt 0:00:10]} 12. Nbd2 {[%emt 0:00:35]} Rd8 {[%emt 0:01:48]} 13. d5 {[%emt 0:04:40]} c4 {[%emt 0:02:27]} 14. Nf1 {[%emt 0:01:54]} h6 {[%emt 0:00:26]} 15. Ng3 {[%emt 0:01:40]} Bf8 {[%emt 0:00:42]} 16. Nh2 {[%emt 0:05:44]} Nb7 {[%emt 0:13:14]} 17. Qf3 {[%emt 0:04:02]} Qe7 {[%emt 0:04:16]} 18. Be3 {[%emt 0:06:41]} g6 {[%emt 0:11:38]} 19. Qe2 {[%emt 0:07:00]} Nc5 {[%emt 0:05:15]} 20. Qd2 {[%emt 0:05:03]} Kh7 {[%emt 0:00:31]} 21. b4 {[%emt 0:04:31]} cxb3 {[%emt 0:02:13]} 22. axb3 {[%emt 0:00:37]} Bb7 {[%emt 0:03:25]} 23. b4 {[%emt 0:00:53]} Ncd7 {[%emt 0:00:04]} 24. Bd3 {[%emt 0:00:10]} Rdc8 {[%emt 0:02:40]} 25. Rec1 {[%emt 0:00:30]} Bg7 {[%emt 0:01:59]} 26. Qe2 {[%emt 0:09:04]} Qd8 {[%emt 0:01:50]} 27. Nhf1 {[%emt 0:03:39]} Nb6 {[%emt 0:11:38]} 28. Nd2 {[%emt 0:01:05]} Nfd7 {[%emt 0:03:22]} 29. Nb3 {[%emt 0:02:14]} Nc4 {[%emt 0:00:39]} 30. Bxc4 {[%emt 0:00:52]} bxc4 {[%emt 0:00:25]} 31. Na5 {[%emt 0:00:31]} Qc7 {[%emt 0:00:11]} 32. Ra2 {[%emt 0:03:31]} Bf6 {[%emt 0:04:56]} 33. Nf1 {[%emt 0:00:39]} Bg5 {[%emt 0:03:53]} 34. Bxg5 hxg5 {[%emt 0:00:04]} 35. Ne3 {[%emt 0:00:32]} Nb6 {[%emt 0:01:20]} 36. Qg4 {[%emt 0:02:19]} f6 {[%emt 0:09:16]} 37. h4 {[%emt 0:00:57]} Rh8 {[%emt 0:01:29]} 38. hxg5 {[%emt 0:00:37]} Bc8 {[%emt 0:00:05]} 39. Qf3 {[%emt 0:01:06]} Kg8 {[%emt 0:01:13]} 40. Qxf6 {[%emt 0:11:04]} Qh7 {[%emt 0:01:01]} 41. f3 {[%emt 0:00:32]} Qh1+ {[%emt 0:01:50]} 42. Kf2 {[%emt 0:00:04]} Qxc1 {[%emt 0:00:40]} 43. Qxg6+ {[%emt 0:00:53]} Kf8 {[%emt 0:00:04]} 44. Qxd6+ {[%emt 0:03:33]} Kg8 {[%emt 0:00:04]} 45. Qd8+ {[%emt 0:00:45]} Kg7 {[%emt 0:00:08]} 46. Qe7+ {[%emt 0:00:20]} Kg8 {[%emt 0:00:09]} 47. Qe8+ {[%emt 0:01:58]} Kg7 {[%emt 0:00:04]} 48. Qxe5+ {[%emt 0:00:09]} Kg8 {[%emt 0:00:03]} 49. Qe8+ {[%emt 0:02:04]} Kg7 {[%emt 0:00:04]} 50. Qe7+ {[%emt 0:00:09]} Kg8 {[%emt 0:00:04]} 51. g6 {[%emt 0:03:48]} Ra7 {[%emt 0:01:29]} 52. Qxa7 {[%emt 0:00:36]} Nd7 {[%emt 0:00:09]} 53. Ng4 {[%emt 0:03:29]} Rh1 {[%emt 0:00:17]} 54. Qe3 {[%emt 0:01:42]} Qb1 {[%emt 0:01:21]} 55. Kg3 {[%emt 0:03:06]} Qxa2 {[%emt 0:01:42]} 56. Qf4 {[%emt 0:00:29]} Ne5 {[%emt 0:01:07]} 57. Nxe5 {[%emt 0:01:17]} 1-0